Cogmind - Beta 13 @@@ ROGUE MODE // 2024.03.23 @ 12:34:25 Player: UniqueDivine Result: Destroyed by G-47 Trooper with Particle Gun Performance ------------- Evolutions (2) 1000 Regions Visited (3) 600 Robots Destroyed (70) 350 Value Destroyed (2108) 2108 Prototype IDs (3) 60 Alien Tech Used (0) 0 Bonus (109) 109 TOTAL SCORE: 4227 Bonus ------- High Alert Combat Kills 109 Cogmind --------- Core Integrity 0/550 Matter 300/300 Energy 100/100 System Corruption 1% Temperature Cool (9) Movement Core (50) Location -8/Materials Parts ------- > --- POWER (3) -------- (None) > --- PROPULSION (2) --- (None) > --- UTILITY (2) ------ (None) > --- WEAPON (4) ------- Particle Gun > --- INVENTORY (5) ---- Advanced Treads Titanium Leg Small Laser Small Laser Ion Cannon Peak State ------------ > --- POWER ------------ Light Ion Engine Nuclear Core Light Nuclear Core > --- PROPULSION ------- Armored Treads Advanced Treads > --- UTILITY ---------- Medium Matter Pod Hardened Light Armor Plating > --- WEAPON ----------- EM Pulse Cannon Heavy Assault Rifle Heavy Assault Rifle Heavy Assault Rifle > --- INVENTORY -------- Improved Treads Titanium Leg Small Laser Small Laser Ion Cannon [Rating: 26] Favorites ----------- Power Ion Engine Engine Ion Engine Power Core Nuclear Core Propulsion Light Treads Treads Light Treads Leg Aluminum Leg Utility Medium Matter Pod Storage Medium Matter Pod Processor Signal Interpreter Protection Hardened Light Armor Plating Weapon Heavy Assault Rifle Energy Gun Small Laser Energy Cannon EM Pulse Cannon Ballistic Gun Heavy Assault Rifle Ballistic Cannon Improved Light Cannon Launcher Grenade Launcher Build | -11 -10 -9 -8 ------- Run | Yrd Mat Mat Mat Slots Evolved 4 | . . 2 2 Power 2 | . . 2 . Propulsion . | . . . . Utility . | . . . . Weapon 2 | . . . 2 Parts Attached 54 | 6 9 28 11 Power 12 | 1 1 7 3 Engine 10 | 1 1 7 1 Core 2 | . . . 2 Reactor . | . . . . Propulsion 15 | 2 1 8 4 Treads 8 | 2 1 1 4 Leg 7 | . . 7 . Wheel . | . . . . Hover . | . . . . Flight . | . . . . Utility 9 | 1 4 4 . Device . | . . . . Storage 7 | 1 3 3 . Processor 1 | . 1 . . Hackware . | . . . . Protection 1 | . . 1 . Artifact . | . . . . Weapon 18 | 2 3 9 4 Energy Gun 8 | 2 1 3 2 Energy Cannon 3 | . . 2 1 Ballistic Gun 3 | . . 2 1 Ballistic Cannon 1 | . . 1 . Launcher 3 | . 2 1 . Special Weapon . | . . . . Impact Weapon . | . . . . Slashing Weapon . | . . . . Piercing Weapon . | . . . . Special Melee Weapon . | . . . . Unidentified Prototypes 1 | . . . 1 Parts Lost 22 | . . 8 14 Power 8 | . . 3 5 Propulsion 4 | . . 2 2 Utility 3 | . . 1 2 Weapon 7 | . . 2 5 Highest Loss Streak 7 | . . 3 7 To Critical Strikes 1 | . . . 1 Average Slot Usage (%) 90 | . 99 84 87 Engine 16 | . 14 22 12 Core 3 | . . . 11 Treads 14 | . 28 3 15 Leg 7 | . . 17 1 Storage 12 | . 18 9 8 Processor 5 | . 9 6 . Protection 3 | . . 4 6 Energy Gun 9 | . 22 3 1 Energy Cannon 3 | . . 3 6 Ballistic Gun 10 | . . 9 21 Launcher 2 | . 5 1 . Naked Turns . | . . . . Heaviest Build 88 | 12 88 28 37 Greatest Support 43 | 40 40 40 43 Greatest Overweight (x) 9 | . 2 9 1 Average Overweight (x) . | . . . . Largest Inventory Capacity 25 | 8 25 25 5 Average Capacity 6 | 7 8 5 5 Most Carried 8 | 2 6 8 5 Average Carried 4 | . 4 5 4 Final Capacity 8 | 8 8 5 5 Final Carried 6 | 2 6 5 5 Class Distribution -------------------- 58% | Mutant 21% | Tank 20% | Scavenger-Mutant Dominant Class ---------------- Mutant | -10/Materials Scavenger-Mutant | -9/Materials Tank | -8/Materials Resources | -11 -10 -9 -8 ----------- Run | Yrd Mat Mat Mat Matter Collected 1460 | 255 98 335 772 Remotely . | . . . . Salvage Created 2353 | 10 433 801 1109 Parts 150 | 4 21 61 64 Haulers Intercepted . | . . . . Recyclers Shooed . | . . . . Parts Field Recycled . | . . . . Retrieved Matter . | . . . . Parts Self-Destructed . | . . . . Prevented . | . . . . Kills | -11 -10 -9 -8 ------- Run | Yrd Mat Mat Mat Combat Hostiles Destroyed 51 | . 12 17 22 Guns 26 | . 4 6 16 Cannons 12 | . . 8 4 AOE 13 | . 8 3 2 Classes Destroyed 12 | 1 5 4 2 Worker 5 | . 2 2 1 Builder 3 | . . 1 2 Tunneler 1 | 1 . . . Recycler 3 | . 1 1 1 Mechanic 1 | . . . 1 Operator 1 | . . 1 . Watcher 5 | . 3 2 . Swarmer 12 | . 3 3 6 Grunt 30 | . 9 9 12 Duelist 2 | . . 2 . Sentry 6 | . . 3 3 Hunter 1 | . . . 1 Best Kill Streak 10 | 1 10 6 6 Combat Bots Only 7 | . 7 5 5 Max Kills in Single Turn 2 | 1 2 2 2 Gunslinging . | . . . . Exploded 2 | . 2 1 1 Melee . | . . . . Uniques/NPCs Destroyed . | . . . . Combat | -11 -10 -9 -8 -------- Run | Yrd Mat Mat Mat Hostile Shots Fired 317 | . 41 118 158 Missed 88 | . 11 36 41 Damage Taken 3698 | . 375 1109 2214 Core 824 | . 93 172 559 Absorbed by Shields . | . . . . Core Remaining (%) 73 | 100 62 57 . Volleys Fired 152 | 9 27 57 59 Largest 4 | 2 2 2 4 Hottest 132 | 80 80 120 132 Shots Fired 299 | 18 51 86 144 Gun 227 | 18 39 42 128 Cannon 54 | . . 38 16 Launcher 18 | . 12 6 . Special . | . . . . Kinetic 137 | . . 30 107 Thermal 106 | 18 39 37 12 Explosive 18 | . 12 6 . Electromagnetic 38 | . . 13 25 Robot Hit Streak 9 | 6 5 9 9 Robot Miss Streak 5 | 4 4 4 5 Penetration Max . | . . . . Secondary Targets 5 | . . 1 4 Max Gunslinging Chain 1 | . . 1 1 Shots Hit Robots 175 | 11 26 52 86 Core Hits 113 | 1 32 34 46 Critical Kills 2 | . . 1 1 Critical Parts Destroyed . | . . . . Critical Strikes 2 | . . 1 1 Destroy 2 | . . 1 1 Melee Attacks . | . . . . Impact . | . . . . Slashing . | . . . . Piercing . | . . . . Sneak Attacks . | . . . . Combat Hostiles . | . . . . Follow-up Attacks . | . . . . Damage Inflicted 4197 | 121 1133 1253 1690 Guns 2008 | 121 302 406 1179 Cannons 832 | . . 580 252 Explosions 1304 | . 819 252 233 Melee . | . . . . Ramming 53 | . 12 15 26 Kinetic 1179 | . . 308 871 Thermal 1531 | 121 488 532 390 Explosive 862 | . 610 252 . Electromagnetic 572 | . 23 146 403 Impact . | . . . . Slashing . | . . . . Piercing . | . . . . Highest Corruption 1 | . . . 1 Average Corruption 1 | . . . 1 Corruption Purged . | . . . . Corruption Blocked . | . . . . Effects 2 | . . . 2 Matter Fused 1 | . . . 1 Heat Flow Errors 1 | . . . 1 Overload Shots . | . . . . Overflow Damage 94 | . 67 14 13 Projectiles . | . . . . Explosions 94 | . 67 14 13 Melee . | . . . . Knockbacks 1 | . . 1 . Impact . | . . . . Kinetic 1 | . . 1 . Secondary . | . . . . Self-Inflicted Damage 243 | . 32 122 89 Shots 7 | . 1 4 2 Rammed 11 | . 4 . 7 Targets Rammed 16 | . 4 4 8 Kicked 4 | . . 4 . Crushed 1 | . . . 1 Highest Temperature 485 | 90 204 405 485 Average Temperature 132 | 43 49 92 174 Received Heat Transfer 1107 | . 162 351 594 Effects 22 | . . 2 20 Shutdowns 9 | . . . 9 Energy Bleed 2 | . . . 2 Interference 5 | . . . 5 Matter Decay 2 | . . . 2 Short Circuit 3 | . . 2 1 Damage (minor) 1 | . . . 1 Siege Activations . | . . . . Robots Corrupted . | . . . . Combat Hostiles . | . . . . Parts Fried 1 | . . . 1 Impact Corruptions . | . . . . Robots Melted . | . . . . Combat Hostiles . | . . . . Parts Melted 4 | . 3 . 1 Heat Transferred 2571 | 275 825 851 620 Parts Sabotaged . | . . . . Parts Stolen . | . . . . Parts Stripped . | . . . . Power Chain Reactions 3 | . . . 3 Alert | -11 -10 -9 -8 ------- Run | Yrd Mat Mat Mat Peak Influence 528 | 5 474 528 513 Initial 154 | . 3 136 154 Average 246 | 1 147 372 231 Maximum Alert Level 2 | . 2 2 2 Low Security (%) 40 | 100 64 8 46 Level 1 42 | . 32 58 40 Level 2 16 | . 3 33 12 Level 3 . | . . . . Level 4 . | . . . . Level 5 . | . . . . High Security . | . . . . Max Security . | . . . . Squads Dispatched 11 | . 3 1 7 Investigation 3 | . . 1 2 Extermination . | . . . . Reinforcement 6 | . 3 . 3 Assault 1 | . . . 1 Garrison 1 | . . . 1 Intercept . | . . . . Searches Triggered . | . . . . Construction Impeded 1 | . . . 1 Haulers Reinforced . | . . . . Active Scanning Responses . | . . . . Cargo Convoy Interrupts . | . . . . Stealth | -11 -10 -9 -8 --------- Run | Yrd Mat Mat Mat Distress Signals 9 | . 2 3 4 Communications Jammed . | . . . . Distress Signals . | . . . . Times Spotted 92 | . 25 27 40 Peak Tracking Total 10 | . 9 6 10 Tactical Retreats 1 | . . . 1 Traps | -11 -10 -9 -8 ------- Run | Yrd Mat Mat Mat Traps Triggered 6 | . 1 3 2 Indirectly . | . . . . Trap Hack Attempts . | . . . . Triggered . | . . . . Disarmed 6 | . . 6 . Reprogrammed . | . . . . Reused . | . . . . Traps Extracted . | . . . . Installed . | . . . . Triggered . | . . . . Machines | -11 -10 -9 -8 ---------- Run | Yrd Mat Mat Mat Machines Disabled 11 | . 6 4 1 Max in Single Turn 3 | . 3 1 1 Garrison Access 1 | . . . 1 Machines Repaired . | . . . . Machines Dismantled . | . . . . Machines Sabotaged . | . . . . Overloaded Fab Kills . | . . . . Hacking | -11 -10 -9 -8 --------- Run | Yrd Mat Mat Mat Machines Accessed 11 | . 3 3 5 Terminals 7 | . 1 3 3 Fabricators . | . . . . Repair Stations 1 | . . . 1 Recycling Units 2 | . 2 . . Scanalyzers 1 | . . . 1 Garrison Access . | . . . . Total Hacks 44 | . 14 16 14 Successful 30 | . 8 12 10 Failed 14 | . 6 4 4 Catastrophic 1 | . . 1 . Database Lockouts . | . . . . Manual . | . . . . Terminals 27 | . 3 16 8 Fabricators . | . . . . Repair Stations 3 | . . . 3 Recycling Units 11 | . 11 . . Scanalyzers 3 | . . . 3 Garrison Access . | . . . . Terminal Hacks 19 | . 2 12 5 Record 8 | . 1 5 2 Robot Analysis 1 | . . . 1 Prototype ID Bank 1 | . . . 1 Alert Level 2 | . 1 1 . Unreport Threat 1 | . . . 1 Locate Traps 1 | . . 1 . Disarm Traps 1 | . . 1 . Patrol Status 1 | . . 1 . Recall Investigation 1 | . . 1 . Registered Components 1 | . . 1 . Zone Layout 1 | . . 1 . Fabricator Hacks . | . . . . Repair Station Hacks 2 | . . . 2 Scan Component 2 | . . . 2 Recycling Unit Hacks 6 | . 6 . . Recycle Component 1 | . 1 . . Process 2 | . 2 . . Report Inventory 3 | . 3 . . Scanalyzer 3 | . . . 3 Insert Component 1 | . . . 1 Analyze 2 | . . . 2 Garrison Access Hacks . | . . . . Unauthorized Hacks . | . . . . Terminals . | . . . . Fabricators . | . . . . Repair Stations . | . . . . Recycling Units . | . . . . Scanalyzers . | . . . . Garrison Access . | . . . . Data Cores Recovered 1 | . . 1 . Used . | . . . . Hacking Detections 11 | . 3 3 5 Full Trace Events 7 | . 3 2 2 Feedback Events . | . . . . Feedback Blocked . | . . . . Robot Schematics Acquired . | . . . . Robots Built . | . . . . Authchips . | . . . . Time . | . . . . Total Robot Build Rating . | . . . . Part Schematics Acquired 1 | . . . 1 Parts Built . | . . . . Authchips . | . . . . Time . | . . . . Total Part Build Rating . | . . . . Parts Repaired . | . . . . Time . | . . . . Parts Recycled 1 | . 1 . . Recycled Matter 170 | . 170 . . Retrieved Matter . | . . . . Retrieved Components . | . . . . Parts Scanalyzed 1 | . . . 1 Part Schematics Acquired 1 | . . . 1 Parts Damaged 1 | . . . 1 Bothacking | -11 -10 -9 -8 ------------ Run | Yrd Mat Mat Mat Used RIF Installer . | . . . . Robots Hacked . | . . . . Non-combat . | . . . . Combat . | . . . . Robot Hacks Applied . | . . . . Relay Couplers Released 1 | . . . 1 Machine Destruction 1 | . . . 1 Fabnet Peak Effective % . | . . . . Robots Rewired . | . . . . Allies Hacked . | . . . . Hacks Repelled . | . . . . Allies | -11 -10 -9 -8 -------- Run | Yrd Mat Mat Mat Total Allies . | . . . . Largest Group . | . . . . Highest-Rated Group . | . . . . Highest-Rated Ally . | . . . . Total Orders . | . . . . Ally Attacks . | . . . . Total Damage . | . . . . Kills . | . . . . Allies Corrupted . | . . . . Allies Melted . | . . . . Intel | -11 -10 -9 -8 ------- Run | Yrd Mat Mat Mat Robot Analysis Total 1 | . . . 1 Derelict Logs Recovered . | . . . . Drone Launches . | . . . . Drone Recoveries . | . . . . Exploration | -11 -10 -9 -8 ------------- Run | Yrd Mat Mat Mat Turns Passed 2730 | 121 844 996 769 Spaces Moved 1376 | 54 458 507 357 Core 23 | 2 . 3 18 Treads 874 | 52 458 66 298 Legs 479 | . . 438 41 Wheels . | . . . . Hover . | . . . . Flight . | . . . . Fastest Speed 50 | 50 160 120 50 Average Speed 153 | 155 160 145 157 Slowest Speed 500 | 160 320 500 190 Overloaded Moves . | . . . . Propulsion Burnouts . | . . . . Robots Hopped . | . . . . Cave-ins Triggered . | . . . . Exploration Rate (%) 37 | 4 65 48 33 Regions Visited 3 Branch Regions . Pre-discovered Areas . | . . . . Known Exits Taken 1 | . 1 . . Unknown Exits Taken 2 | 1 . 1 . Scrap Searched . | . . . . Spaces Dug . | . . . . Terrain Destroyed 135 | . 88 38 9 Melee . | . . . . Projectile 5 | . . 5 . AOE 130 | . 88 33 9 Terrain Rammed . | . . . . Walls Destroyed . | . . . . Machines Disabled . | . . . . Actions | -11 -10 -9 -8 --------- Run | Yrd Mat Mat Mat Total 1705 | 70 512 671 452 Wait 76 | . 9 58 9 Move 1373 | 53 457 506 357 Hop . | . . . . Pick Up 10 | 2 3 2 3 Fast Attach 44 | 6 6 24 8 Attach 6 | . 1 3 2 Detach 9 | . 3 5 1 Swap 4 | . 2 1 1 Drop 15 | . . 11 4 Fire 152 | 9 27 57 59 Melee . | . . . . Ram 6 | . . . 6 Kick 4 | . . 4 . Crush 6 | . 4 . 2 Escape Stasis . | . . . . Rewire . | . . . . Trap . | . . . . Miscellaneous . | . . . . Route ------- -11/Scrapyard -10/Materials (discovered 2 exits: *Mat / *Min) -9/Materials (discovered 3 exits: *Mat x3) -8/Materials History --------- Turn | Location | Event 12 | -11/Scrapyard | Discovered new exit (range 15) 122 | -11/Scrapyard | Entered Materials 316 | -10/Materials | Build established: Mutant 508 | -10/Materials | Discovered new exit (range 14) 543 | -10/Materials | Identified exit to Mines 700 | -10/Materials | Destroyed 7 combat bots 744 | -10/Materials | Discovered new exit (range 12) 796 | -10/Materials | Identified exit to Materials 966 | -10/Materials | Entered another Materials area 966 | -9/Materials | Evolved 2 slots: Power x2 1161 | -9/Materials | Lost 3 parts (1p2n) 1202 | -9/Materials | Discovered new exit (range 16) 1241 | -9/Materials | Lost 3 parts (1p2w) 1437 | -9/Materials | Build established: Scavenger-Mutant 1496 | -9/Materials | Discovered new exit (range 13) 1753 | -9/Materials | Discovered new exit (range 11) 1962 | -9/Materials | Entered another Materials area 1962 | -8/Materials | Evolved 2 slots: Weapon x2 1974 | -8/Materials | Build established: Mutant 2275 | -8/Materials | Build established: Tank 2549 | -8/Materials | Garrison activated, responded to threat 2616 | -8/Materials | Lost 4 parts (1u3w) 2701 | -8/Materials | Core integrity fell below 50% 2723 | -8/Materials | Core integrity fell below 20% 2731 | -8/Materials | Destroyed by G-47 Trooper with Particle Gun Last Messages --------------- 02720_ Slammed into H-61 Shepherd. 02721_ Med. Matter Pod destroyed. 02721_ Slug penetrates Wall. 02721_ U-05 Engineer destroyed. 02722_ K-01 Serf collects debris. 02722_ Slammed into H-61 Shepherd. 02724_ U-05 Engineer builds a Wall. 02725_ Slammed into H-61 Shepherd. 02726_ Knocked back. 02726_ C-30 ARC bursts open, deploying its payload. 02726_ G-50 Soldier unfolds itself. 02726_ G-47 Trooper unfolds itself. 02726_ M-28 Smith unfolds itself. 02726_ Critical hit (Burn: +37). 02726_ M-28 Smith repairs G-47 Trooper. 02727_ K-01 Serf collects debris. 02727_ K-01 Serf destroyed. 02729_ R-06 Scavenger collects Lgt. Ion Engine. 02730_ Slammed into H-61 Shepherd. Map ----- +----------------------------------------------------+ | | | | | | | | | | | | | ?????????????????????????????????????????????????? | | ????????????########?????????????????????????????? | | ????????????# #?????????????????????????????? | | ????????????# "" #????###??????????????????????? | | ?????######## ""S !#?#### #####??????????????????? | | ?????# # "" ### #??????????????????? | | ?????#= """# ## """ #??????????????????? | | ?????# """# ! ## ###????????????????? | | ?????# """####+### ! ##???????????????? | | ?????# % # #???????????????? | | ?????# ! ] #### ### % ####???????????????? | | ?????########### #?# #% ##?????????????????? | | ??????# # #?# ##?????????????????? | | ??????# """ # #?## ##?????????#???????? | | ??????# """ !# #########+########## ???????? | | ??????# """ # % t ??????? | | ??????# + =%r g ??????? | | ??????# """ # %%g g%% ! ??????? | | ??????# """ ### #######g%######### ???????? | | ??????# """ #?# # g@g%#????????????#???????? | | ??????# #?# # %uH m#????????????????????? | | ??????##########?# # % % #????????????????????? | | ???????# #### # """ #????????????????????? | | ???????# + #""""" #????????????????????? | | ???????# #= #""""" #????????????????????? | | ???????# # #""""" #????????????????????? | | ???????# + # """ #????????????????????? | | ???????# # #? #????????????????????? | | ?????########## #??#######????????????????????? | | ?????# ! = #?????????????????????????????? | | ?????# #?????????????????????????????? | | ?????# !!]^ #?????????????????????????????? | | ?????# !!] #?????????????????????????????? | | ?????# !! #?????????????????????????????? | | ?????# #?????????????????????????????? | | ?????# #?????????????????????????????? | | ?????# ^ ^ #?????????????????????????????? | | ###### ^ #?????????????????????????????? | | # """ *%=#?????????????????????????????? | | # % """ ! #?????????????????????????????? | | # """ %=#?????????????????????????????? | | """ + "Y" #?????????????????????????????? | | """ # """ #?????????????????????????????? | | """ # #?????????????????????????????? | +----------------------------------------------------+ Best States ------------- Heat Dissipation 31 Energy Generation 28 Energy Capacity 440 Matter Stores 400 Matter Capacity 400 Sight Range 16 Terrain Scan Density 10 Armor Coverage 150 Evasion (%) 55 Recoil Reduction 2 Item Schematics ----------------- Imp. Treads | -8/Materials | Scanalyzed Robot Schematics ------------------ None Fabricated ------------ Nothing Alien Tech Used ----------------- None Achievements -------------- None Challenges ------------ None Game ------ Seed AlloyCompactArachnoskeleton Manual? 0 Play Time 00:35:03 Cumulative 9.5 hours Start 2024.03.23 @ 11:55:01 End 2024.03.23 @ 12:34:25 Sessions 1 Manual Loads 0 Difficulty Rogue Special Mode None Game No. 14 Rogue 14 Adventurer 0 Explorer 0 Win Type - Total 0 Types 0/0/0/0/0/0/0/0/0 Lore% 6 Gallery% 14 Achievement% 14 Wizard Run 0 Options --------- Layout 1 ASCII 1 Keyboard 1 Movement Arrows Keybinds 0 Fullscreen 2 Font 24/Terminus Map View 50x35 Zoom Use 0% Tactical HUD 1 Map Filters NONE Filters NONE Steam X RUN: 87d3829e-78c3-4a8d-8c19-82ee8fcfa60a